fUST/lending_fUST_20250720
["ID","MTS","AMOUNT","RATE_DAILY","PERIOD"]
[373331261,1752948646539,-584.46081,0.0002215,7]
[373331262,1752948646549,-154.60703084,0.0002218,2]
[373331263,1752948646559,-192.0,0.00022192,7]
[373331264,1752948646568,-1000.0,0.00022248,2]
[373331266,1752948646578,-1000.0,0.00022248,2]
[373331268,1752948646590,-517.73282195,0.00022248,2]
[373331270,1752948646599,-150.786864,0.0002225,4]
[373331271,1752948646609,-4921.56958507,0.00022279,6]
[373331272,1752948646618,-500.0,0.00022313,2]
[373331274,1752948646628,-198.0,0.00022313,2]
[373331276,1752948646637,-500.0,0.00022313,2]
[373331278,1752948646647,-198.0,0.00022313,2]
[373331280,1752948646657,-581.0,0.00022313,2]
[373331282,1752948646667,-220.44796763,0.00022313,2]
[373331284,1752948646677,-460.0,0.00022373,2]
[373331286,1752948646687,-1087.93,0.00022373,2]
[373331288,1752948646696,-1088.43,0.00022373,2]
[373331290,1752948646706,-882.39,0.00022373,2]
[373331293,1752948646716,-501.53,0.00022373,2]
[373331295,1752948646726,-1564.85,0.00022373,2]
[373331297,1752948646736,-656.28,0.00022374,2]
[373331299,1752948646745,-626.25,0.00022374,2]
[373331301,1752948646755,-823.43,0.00022374,2]
[373331303,1752948646766,-870.62,0.00022374,2]
[373331305,1752948646775,-1097.5,0.00022374,2]
[373331307,1752948646784,-495.04,0.00022374,2]
[373331309,1752948646793,-700.6701932,0.00022374,2]
[373331311,1752948646803,-836.0,0.0002239,2]
[373331313,1752948646813,-4663.51977035,0.00022391,2]
[373331315,1752948646823,-150.786864,0.00022401,2]
[373331317,1752948646833,-891.80253197,0.00022426,2]
[373331319,1752948646845,-151.0,0.0002249,7]
[373331320,1752948646855,-584.46081,0.0002249,7]
[373331322,1752948646864,-151.0,0.0002249,7]
[373331324,1752948646874,-584.46081,0.0002249,7]
[373331326,1752948646883,-151.0,0.0002249,7]
[373331328,1752948646893,-151.0,0.0002249,7]
[373331330,1752948646903,-151.0,0.0002249,7]
[373331332,1752948646912,-151.0,0.0002249,7]
[373331334,1752948646922,-151.0,0.0002249,7]
[373331336,1752948646932,-298.295768,0.0002249,7]
[373331338,1752948646941,-151.0,0.0002249,7]
[373331340,1752948646951,-323.796034,0.0002249,7]
[373331342,1752948646960,-323.796034,0.0002249,7]
[373331344,1752948646970,-306.913679,0.0002249,7]
[373331346,1752948646979,-306.913679,0.0002249,7]
[373331348,1752948646989,-151.0,0.0002249,7]
[373331350,1752948646999,-250.0,0.00022521,2]
[373331352,1752948647009,-1000.0,0.00022521,2]
[373331354,1752948647019,-507.40545846,0.00022521,2]
[373331356,1752948647029,-1000.0,0.00022521,2]
[373331358,1752948647039,-4921.56958507,0.00022521,7]
[373331360,1752948647049,-323.35842337,0.00022521,3]
[373331362,1752948647060,-500.0,0.00022521,8]
[373331363,1752948647070,-500.0,0.00022521,8]
[373331364,1752948647079,-152.0,0.00022521,3]
[373331365,1752948647091,-152.0,0.00022521,3]
[373331367,1752948647101,-152.0,0.00022521,3]
[373331368,1752948647110,-152.0,0.00022521,3]
[373331370,1752948647120,-152.0,0.00022521,3]
[373331372,1752948647129,-152.0,0.00022521,3]
[373331374,1752948647139,-152.0,0.00022521,3]
[373331376,1752948647148,-152.0,0.00022521,3]
[373331378,1752948647158,-152.0,0.00022521,3]
[373331380,1752948647168,-86.86695295,0.00022521,3]
[373331386,1752948647265,-65.13304705,0.00022521,3]
[373331387,1752948647275,-152.0,0.00022521,3]
[373331388,1752948647285,-152.0,0.00022521,3]
[373331389,1752948647294,-152.0,0.00022521,3]
[373331390,1752948647304,-152.0,0.00022521,3]
[373331391,1752948647314,-152.0,0.00022521,3]
[373331392,1752948647323,-98.29868086,0.00022521,3]
[373331393,1752948647519,-460.0,0.00017989,2]
[373331394,1752948647530,-460.0,0.00018263,2]
[373331395,1752948647540,-460.0,0.00018537,2]
[373331396,1752948647550,-416.784,0.00020861,2]
[373331397,1752948647560,-53.70131914,0.00022521,3]
[373331398,1752948647569,-152.0,0.00022521,3]
[373331399,1752948647579,-152.0,0.00022521,3]
[373331400,1752948647590,-152.0,0.00022521,3]
[373331401,1752948647600,-152.0,0.00022521,3]
[373331402,1752948647610,-152.0,0.00022521,3]
[373331404,1752948647619,-152.0,0.00022521,3]
[373331405,1752948647629,-152.0,0.00022521,3]
[373331407,1752948647639,-152.0,0.00022521,3]
[373331409,1752948647648,-152.0,0.00022521,3]
[373331411,1752948647658,-152.0,0.00022521,3]
[373331413,1752948647667,-152.0,0.00022521,3]
[373331414,1752948647677,-152.0,0.00022521,3]
[373331416,1752948647686,-152.0,0.00022521,3]
[373331419,1752948647696,-152.0,0.00022521,3]
[373331421,1752948647705,-152.0,0.00022521,3]
[373331422,1752948647715,-152.0,0.00022521,3]
[373331425,1752948647725,-152.0,0.00022521,3]
[373331426,1752948647734,-152.0,0.00022521,3]
[373331429,1752948647744,-152.0,0.00022521,3]
[373331431,1752948647754,-152.0,0.00022521,3]
[373331433,1752948647763,-152.0,0.00022521,3]
[373331435,1752948647774,-152.0,0.00022521,3]
[373331437,1752948647784,-152.0,0.00022521,3]
[373331439,1752948647793,-152.0,0.00022521,3]
[373331441,1752948647803,-152.0,0.00022521,3]
[373331443,1752948647812,-152.0,0.00022521,3]
[373331445,1752948647822,-152.0,0.00022521,3]
[373331447,1752948647831,-152.0,0.00022521,3]
[373331449,1752948647841,-152.0,0.00022521,3]
[373331450,1752948647851,-152.0,0.00022521,3]
[373331452,1752948647860,-152.0,0.00022521,3]
[373331454,1752948647869,-152.0,0.00022521,3]
[373331456,1752948647879,-152.0,0.00022521,3]
[373331459,1752948647889,-152.0,0.00022521,3]
[373331461,1752948647898,-152.0,0.00022521,3]
[373331463,1752948647908,-152.0,0.00022521,3]
[373331465,1752948647917,-152.0,0.00022521,3]
[373331467,1752948647926,-152.0,0.00022521,3]
[373331469,1752948647935,-152.0,0.00022521,3]
[373331471,1752948647945,-152.0,0.00022521,3]
[373331472,1752948647954,-69.54134886,0.00022521,3]
[373331475,1752948647966,-82.45865114,0.00022521,3]
[373331477,1752948647976,-152.0,0.00022521,3]
[373331479,1752948647986,-152.0,0.00022521,3]
[373331481,1752948647995,-152.0,0.00022521,3]
[373331483,1752948648005,-163.12973459,0.00022521,3]
[373331485,1752948648015,-172.0,0.00022521,3]
[373331486,1752948648024,-172.0,0.00022521,3]
[373331487,1752948648034,-202.13019808,0.00022521,3]
[373331488,1752948648043,-172.0,0.00022521,3]
[373331489,1752948648053,-172.0,0.00022521,3]
[373331490,1752948648063,-1752.0,0.00022521,3]
[373331491,1752948648073,-172.0,0.00022521,3]
[373331493,1752948648083,-1752.0,0.00022521,3]
[373331495,1752948648095,-1752.0,0.00022521,3]
[373331497,1752948648105,-173.95685811,0.00022521,3]
[373331499,1752948648115,-1752.0,0.00022521,3]
[373331501,1752948648125,-1752.0,0.00022521,3]
[373331503,1752948648135,-1752.0,0.00022521,3]
[373331505,1752948648146,-1784.10004566,0.00022521,3]
[373331507,1752948648157,-155.0,0.00022521,2]
[373331509,1752948648167,-1752.0,0.00022521,3]
[373331511,1752948648178,-151.0,0.00022528,7]
[373331513,1752948648188,-151.0,0.00022528,7]
[373331515,1752948648199,-433.823889,0.00022528,7]
[373331517,1752948648209,-433.823889,0.00022528,7]
[373331519,1752948648220,-1734.983895,0.00022528,7]
[373331521,1752948648230,-1734.983895,0.00022528,7]
[373331523,1752948648240,-660.0,0.00022534,2]
[373331525,1752948648250,-1000.0,0.00022548,2]
[373331527,1752948648260,-151.0,0.00022573,7]
[373331529,1752948648269,-186.878287,0.00022573,7]
[373331531,1752948648280,-186.878287,0.00022573,7]
[373331534,1752948648290,-151.0,0.00022573,7]
[373331536,1752948648300,-151.0,0.00022573,7]
[373331538,1752948648311,-154.720021,0.00022573,7]
[373331540,1752948648321,-154.720021,0.00022573,7]
[373331542,1752948648331,-160.0,0.00022579,4]
[373331544,1752948648343,-1881.61,0.00022581,6]
[373331546,1752948648352,-500.0,0.00022587,2]
[373331548,1752948648362,-500.0,0.00022587,2]
[373331550,1752948648372,-581.0,0.00022587,2]
[373331552,1752948648382,-5888.0,0.00022593,2]
[373331554,1752948648391,-151.0,0.00022593,7]
[373331556,1752948648402,-151.0,0.00022593,7]
[373331558,1752948648413,-151.0,0.00022593,7]
[373331560,1752948648423,-5353.08,0.000226,7]
[373331562,1752948648434,-151.0,0.000226,8]
[373331564,1752948648445,-151.0,0.000226,7]
[373331566,1752948648456,-165.997733,0.000226,7]
[373331568,1752948648466,-165.997733,0.000226,7]
[373331570,1752948648476,-151.0,0.000226,7]
[373331572,1752948648486,-151.0,0.000226,7]
[373331574,1752948648496,-462.972308,0.00022603,2]
[373331576,1752948648506,-206.0,0.0002261,2]
[373331578,1752948648517,-383.0,0.00022641,2]
[373331580,1752948648528,-460.0,0.00022647,2]
[373331582,1752948648539,-882.39,0.00022647,2]
[373331584,1752948648549,-501.53,0.00022647,2]
[373331586,1752948648558,-1564.85,0.00022647,2]
[373331588,1752948648568,-383.0,0.00022648,2]
[373331590,1752948648578,-656.28,0.00022648,2]
[373331592,1752948648587,-626.25,0.00022648,2]
[373331594,1752948648599,-823.43,0.00022648,2]
[373331596,1752948648609,-870.62,0.00022648,2]
[373331598,1752948648619,-1097.5,0.00022648,2]
[373331600,1752948648629,-495.04,0.00022648,2]
[373331602,1752948648639,-159.8125085,0.00022658,2]
[373331604,1752948648649,-159.8125085,0.00022658,2]
[373331606,1752948648660,-1881.61,0.00022681,5]
[373331608,1752948648670,-200.0,0.0002269,5]
[373331610,1752948648679,-700.0,0.00022708,2]
[373331612,1752948648689,-383.0,0.0002273,2]
[373331614,1752948648699,-800.0,0.00022733,2]
[373331616,1752948648709,-150.786864,0.00022739,14]
[373331618,1752948648719,-4921.56958507,0.00022762,7]
[373331620,1752948648729,-1881.61,0.00022781,6]
[373331622,1752948648739,-1500.0,0.00022796,2]
[373331624,1752948648749,-1500.0,0.00022796,2]
[373331626,1752948648759,-150.786864,0.00022845,3]
[373331628,1752948648769,-500.0,0.00022861,2]
[373331630,1752948648779,-581.0,0.00022861,2]
[373331632,1752948648789,-800.0,0.00022871,2]
[373331634,1752948648799,-150.786864,0.00022875,4]
[373331636,1752948648809,-1881.61,0.00022881,7]
[373331638,1752948648820,-383.0,0.00022886,2]
[373331640,1752948648830,-800.0,0.00022895,2]
[373331642,1752948648841,-383.0,0.00022899,2]
[373331644,1752948648852,-151.0,0.00022899,7]
[373331646,1752948648862,-460.0,0.00022921,2]
[373331648,1752948648872,-882.39,0.00022921,2]
[373331650,1752948648882,-501.53,0.00022921,2]
[373331652,1752948648893,-1564.85,0.00022921,2]
[373331654,1752948648903,-656.28,0.00022922,2]
[373331656,1752948648913,-626.25,0.00022922,2]
[373331658,1752948648923,-823.43,0.00022922,2]
[373331660,1752948648933,-870.62,0.00022922,2]
[373331662,1752948648944,-1097.5,0.00022922,2]
[373331664,1752948648955,-495.04,0.00022922,2]
[373331666,1752948648966,-223.0315306,0.00022961,2]
[373331668,1752948648977,-500.0,0.00022973,2]
[373331670,1752948648988,-500.0,0.00022973,2]
[373331672,1752948648998,-500.66471472,0.00022973,2]
[373331674,1752948649010,-501.4575332,0.00022973,2]
[373331676,1752948649019,-500.0,0.00022973,2]
[373331678,1752948649030,-500.0,0.00022973,2]
[373331693,1752948649174,-500.0,0.00022973,2]
[373331695,1752948649185,-500.0,0.00022973,2]
[373331697,1752948649196,-540.13657752,0.00022973,2]
[373331699,1752948649206,-500.0,0.00022973,2]
[373331701,1752948649217,-442.03826326,0.00022973,2]
[373331703,1752948649227,-500.0,0.00022973,2]
[373331705,1752948649238,-500.71124233,0.00022973,2]
[373331707,1752948649248,-500.0,0.00022973,2]
[373331709,1752948649259,-501.69710347,0.00022973,2]
[373331711,1752948649269,-161.54542214,0.00022973,2]
[373331713,1752948649279,-500.0,0.00022973,2]
[373331715,1752948649288,-500.0,0.00022973,2]
[373331717,1752948649301,-500.0,0.00022973,2]
[373331719,1752948649311,-500.0,0.00022973,2]
[373331721,1752948649320,-500.0,0.00022973,2]
[373331723,1752948649330,-500.0,0.00022973,2]
[373331725,1752948649341,-500.0,0.00022973,2]
[373331727,1752948649352,-1881.61,0.00022981,7]
[373331729,1752948649361,-151.0,0.0002299,7]
[373331731,1752948649372,-323.796034,0.0002299,7]
[373331733,1752948649382,-323.796034,0.0002299,7]
[373331735,1752948649392,-306.913679,0.0002299,7]
[373331738,1752948649402,-306.913679,0.0002299,7]
[373331740,1752948649412,-95932.16019391,0.00023,10]
[373331742,1752948649422,-2132.0,0.00023,15]
[373331744,1752948649432,-61769.42,0.00023,2]
[373331746,1752948649444,-160.0,0.00023,3]
[373331748,1752948649454,-160.0,0.00023,3]
[373331750,1752948649464,-5941.09271562,0.00023,2]
[373331752,1752948649474,-160.0,0.00023,3]
[373331754,1752948649484,-160.0,0.00023,3]
[373331756,1752948649494,-151.0,0.00023,7]
[373331758,1752948649503,-151.0,0.00023,7]
[373331760,1752948649513,-151.0,0.00023,7]
[373331762,1752948649524,-174.767304,0.00023,7]
[373331764,1752948649535,-151.0,0.00023,7]
[373331766,1752948649545,-151.0,0.00023,7]
[373331768,1752948649556,-151.0,0.00023,7]
[373331770,1752948649567,-151.0,0.00023,7]
[373331773,1752948649578,-151.0,0.00023,7]
[373331775,1752948649587,-151.0,0.00023,7]
[373331777,1752948649599,-220.895748,0.00023,7]
[373331779,1752948649609,-252.59985,0.00023,7]
[373331781,1752948649619,-151.0,0.00023,7]
[373331783,1752948649629,-584.46081,0.00023,7]
[373331785,1752948649639,-151.0,0.00023,7]
[373331787,1752948649650,-584.46081,0.00023,7]
[373331789,1752948649660,-151.0,0.00023,7]
[373331791,1752948649671,-151.982926,0.00023,7]
[373331793,1752948649680,-151.0,0.00023,7]
[373331795,1752948649690,-151.0,0.00023,7]
[373331797,1752948649699,-151.0,0.00023,7]
[373331799,1752948649709,-298.295768,0.00023,7]
[373331801,1752948649719,-151.0,0.00023,7]
[373331803,1752948649730,-151.0,0.00023,7]
[373331805,1752948649739,-151.0,0.00023,7]
[373331807,1752948649749,-151.0,0.00023,7]
[373331809,1752948649759,-151.0,0.00023,7]
[373331811,1752948649769,-151.0,0.00023,7]
[373331813,1752948649779,-151.0,0.00023,7]
[373331815,1752948649788,-2063.36,0.00023,7]
[373331817,1752948649798,-151.0,0.00023,7]
[373331819,1752948649807,-10686.32,0.00023,7]
[373331821,1752948649818,-151.0,0.00023,7]
[373331823,1752948649827,-151.0,0.00023,7]
[373331825,1752948649837,-151.0,0.00023,7]
[373331827,1752948649848,-151.0,0.00023,7]
[373331830,1752948649858,-151.0,0.00023,7]
[373331832,1752948649869,-151.0,0.00023,7]
[373331834,1752948649879,-186.878287,0.00023,7]
[373331836,1752948649889,-186.878287,0.00023,7]
[373331838,1752948649899,-151.0,0.00023,7]
[373331840,1752948649909,-151.0,0.00023,7]
[373331842,1752948649919,-151.0,0.00023,7]
[373331844,1752948649929,-226.946388,0.00023,7]
[373331846,1752948649939,-226.946388,0.00023,7]
[373331848,1752948649948,-323.796034,0.00023,7]
[373331850,1752948649957,-323.796034,0.00023,7]
[373331852,1752948649967,-154.720021,0.00023,7]
[373331855,1752948649977,-154.720021,0.00023,7]
[373331857,1752948649986,-151.0,0.00023,7]
[373331859,1752948649996,-417.215471,0.00023,7]
[373331861,1752948650006,-417.215471,0.00023,7]
[373331863,1752948650016,-525.83049785,0.00023,3]
[373331865,1752948650025,-151.0,0.00023,7]
[373331867,1752948650036,-151.0,0.00023,7]
[373331869,1752948650045,-160.0,0.00023,3]
[373331871,1752948650055,-151.0,0.00023,7]
[373331873,1752948650064,-306.913679,0.00023,7]
[373331875,1752948650073,-306.913679,0.00023,7]
[373331877,1752948650083,-202.088154,0.00023,7]
[373331880,1752948650093,-230.94145789,0.00023,3]
[373331882,1752948650104,-215.67360783,0.00023,3]
[373331884,1752948650113,-839.454303,0.00023,3]
[373331886,1752948650122,-433.823889,0.00023,7]
[373331888,1752948650132,-433.823889,0.00023,7]
[373331890,1752948650142,-165.997733,0.00023,7]
[373331892,1752948650151,-165.997733,0.00023,7]
[373331894,1752948650162,-151.0,0.00023,7]
[373331896,1752948650172,-1734.983895,0.00023,7]
[373331898,1752948650181,-1734.983895,0.00023,7]
[373331900,1752948650191,-151.0,0.00023,7]
[373331903,1752948650201,-151.0,0.00023,7]
[373331904,1752948650211,-4921.56958507,0.00023003,8]
[373331907,1752948650221,-206.0,0.0002301,2]
[373331909,1752948650231,-192.0,0.00023014,7]
[373331911,1752948650240,-151.0,0.00023068,7]
[373331913,1752948650250,-151.0,0.00023068,7]
[373331915,1752948650259,-151.0,0.00023068,7]
[373331917,1752948650268,-433.823889,0.00023068,7]
[373331919,1752948650277,-433.823889,0.00023068,7]
[373331921,1752948650287,-1734.983895,0.00023068,7]
[373331923,1752948650296,-1734.983895,0.00023068,7]
[373331925,1752948650306,-350.0,0.00023068,2]
[373331927,1752948650315,-1500.0,0.00023068,2]
[373331929,1752948650324,-5888.0,0.00023075,2]
[373331931,1752948650333,-1881.61,0.00023081,4]
[373331933,1752948650344,-760.0,0.00023082,2]
[373331935,1752948650353,-1000.0,0.00023096,2]
[373331937,1752948650363,-151.0,0.000231,10]
[373331939,1752948650372,-151.0,0.000231,7]
[373331941,1752948650381,-151.0,0.000231,9]
[373331943,1752948650390,-152.159767,0.00023121,7]
[373331945,1752948650400,-151.0,0.00023121,7]
[373331947,1752948650409,-151.0,0.00023121,7]
[373331948,1752948650418,-151.0,0.00023121,7]
[373331950,1752948650428,-151.0,0.00023121,7]
[373331952,1752948650438,-186.878287,0.00023121,7]
[373331954,1752948650453,-186.878287,0.00023121,7]
[373331956,1752948650463,-151.0,0.00023121,7]
[373331958,1752948650473,-151.0,0.00023121,7]
[373331960,1752948650482,-151.0,0.00023121,7]
[373331962,1752948650493,-154.720021,0.00023121,7]
[373331964,1752948650502,-154.720021,0.00023121,7]
[373331966,1752948650511,-165.997733,0.0002313,7]
[373331968,1752948650521,-165.997733,0.0002313,7]
[373331970,1752948650530,-151.0,0.0002313,7]
[373331972,1752948650540,-151.0,0.0002313,7]
[373331974,1752948650550,-500.0,0.00023135,2]
[373331976,1752948650559,-581.0,0.00023135,2]
[373331978,1752948650568,-151.0,0.00023181,7]
[373331980,1752948650578,-226.946388,0.00023181,7]
[373331982,1752948650588,-226.946388,0.00023181,7]
[373331984,1752948650598,-417.215471,0.00023181,7]
[373331986,1752948650607,-417.215471,0.00023181,7]
[373331988,1752948650616,-151.0,0.00023181,7]
[373331990,1752948650627,-1881.61,0.00023181,6]
[373331992,1752948650636,-512.52076979,0.00023195,2]
[373331994,1752948650646,-882.39,0.00023195,2]
[373331996,1752948650655,-501.53,0.00023195,2]
[373331998,1752948650664,-1564.85,0.00023195,2]
[373332000,1752948650674,-656.28,0.00023196,2]
[373332002,1752948650683,-626.25,0.00023196,2]
[373332004,1752948650693,-823.43,0.00023196,2]
[373332006,1752948650703,-870.62,0.00023196,2]
[373332008,1752948650713,-1097.5,0.00023196,2]
[373332010,1752948650723,-495.04,0.00023196,2]
[373332012,1752948650733,-383.0,0.000232,2]
[373332014,1752948650743,-150.786864,0.000232,6]
[373332017,1752948650753,-4921.56958507,0.00023245,8]
[373332019,1752948650763,-174.767304,0.00023245,7]
[373332021,1752948650772,-174.767304,0.00023245,7]
[373332023,1752948650781,-151.0,0.00023245,7]
[373332025,1752948650791,-151.0,0.00023245,7]
[373332027,1752948650801,-151.0,0.00023245,7]
[373332029,1752948650811,-151.0,0.00023245,7]
[373332031,1752948650820,-151.0,0.00023245,7]
[373332033,1752948650829,-188.435419,0.00023245,7]
[373332035,1752948650839,-151.0,0.00023245,7]
[373332037,1752948650849,-151.0,0.00023245,7]
[373332039,1752948650858,-151.0,0.00023245,7]
[373332041,1752948650867,-151.0,0.00023245,7]
[373332043,1752948650876,-298.295768,0.00023245,7]
[373332045,1752948650886,-151.0,0.00023245,7]
[373332047,1752948650896,-151.0,0.00023245,7]
[373332049,1752948650905,-151.0,0.00023245,7]
[373332051,1752948650914,-151.0,0.00023245,7]
[373332053,1752948650924,-183.68969,0.00023245,7]
[373332055,1752948650934,-151.0,0.00023245,7]
[373332057,1752948650943,-209.64576,0.00023245,7]
[373332059,1752948650953,-151.0,0.00023245,7]
[373332061,1752948650963,-151.0,0.00023245,7]
[373332063,1752948650972,-151.0,0.00023281,7]
[373332065,1752948650982,-151.0,0.00023281,7]
[373332067,1752948650991,-151.0,0.00023281,7]
[373332069,1752948651001,-584.46081,0.00023281,7]
[373332071,1752948651010,-584.46081,0.00023281,7]
[373332073,1752948651020,-1881.61,0.00023281,3]
[373332075,1752948651029,-2000.0,0.00023344,2]
[373332077,1752948651039,-679.88427532,0.00023344,2]
[373332079,1752948651049,-151.0,0.0002336,7]
[373332081,1752948651058,-151.0,0.0002336,7]
[373332083,1752948651068,-5888.0,0.0002336,2]
[373332085,1752948651077,-150.786864,0.00023362,5]
[373332087,1752948651087,-823.0,0.00023367,2]
[373332089,1752948651097,-1881.61,0.00023381,5]
[373332091,1752948651107,-383.0,0.00023382,2]
[373332093,1752948651117,-891.80253197,0.0002339,2]
[373332095,1752948651127,-7778.99332576,0.000234,2]
[373332097,1752948651137,-8794.32067405,0.000234,2]
[373332099,1752948651147,-500.0,0.00023409,2]
[373332101,1752948651156,-581.0,0.00023409,2]
[373332103,1752948651166,-206.0,0.0002341,2]
[373332105,1752948651176,-383.0,0.00023432,2]
[373332107,1752948651185,-1240.61968907,0.00023438,2]
[373332109,1752948651195,-674.7615612,0.00023439,2]
[373332453,1752949256572,318.71719,0.00013699,2]
[373332755,1752949718856,9196.85953094,0.00024,60]
[373332803,1752949840759,-500.0,0.0001679,2]
[373332804,1752949840769,-500.0,0.00017674,2]
[373332805,1752949840778,-444.3646396,0.00018437,2]
[373332806,1752949840787,-500.0,0.00018604,2]
[373332807,1752949840797,-2044.8482603,0.000189,2]
[373332808,1752949840806,-227.55134817,0.00019002,2]
[373333897,1752949967184,1498.0,0.00025319,50]
[373333898,1752949977289,1493.07794049,0.00025319,52]
[373333901,1752950124936,958.76,0.0001833,6]
[373333904,1752950677936,302.78133,0.00013699,2]
[373333934,1752951032649,-500.0,0.00018608,2]
[373333935,1752951032659,-4663.51977034,0.00018668,2]
[373333936,1752951032668,-904.21130213,0.000189,2]
[373333937,1752951032702,-1343.84722146,0.000189,2]
[373333938,1752951032713,-471.0,0.00019,2]
[373333939,1752951032723,-359.87405218,0.00019001,2]
[373333940,1752951032732,-429.57494793,0.00019002,2]
[373333954,1752951038599,-242.42505207,0.00019002,2]
[373333955,1752951038609,-62.57494793,0.00019177,2]
[373333956,1752951038622,-237.42505207,0.00019177,2]
[373333957,1752951038631,-300.0,0.00019177,2]
[373333958,1752951038641,-300.0,0.00019177,2]
[373333959,1752951038650,-277.783384,0.00019178,2]
[373333960,1752951038660,-666.0,0.00019178,2]
[373333962,1752951038670,-502.16490059,0.00019208,2]
[373333964,1752951038680,-1062.60731886,0.00019273,2]
[373333966,1752951038694,-620.30984453,0.00019307,2]
[373333968,1752951038703,-462.83383165,0.00019307,2]
[373333970,1752951038713,-460.0,0.00019307,2]
[373333972,1752951038724,-429.64154219,0.00019307,2]
[373333973,1752951038735,-460.0,0.00019307,2]
[373333974,1752951038745,-460.18169332,0.00019307,2]
[373333975,1752951038755,-460.0,0.00019307,2]
[373333976,1752951038768,-460.0,0.00019307,2]
[373333977,1752951038778,-460.0,0.00019307,2]
[373333978,1752951038787,-460.0,0.00019307,2]
[373333979,1752951038797,-460.0,0.00019307,2]
[373333980,1752951038939,-305.31,0.00019307,2]
[373333981,1752951038955,-460.0,0.00019307,2]
[373333982,1752951038964,-460.0,0.00019307,2]
[373333983,1752951038985,-460.0,0.00019307,2]
[373333984,1752951038997,-460.0,0.00019307,2]
[373333985,1752951039007,-460.0,0.00019307,2]
[373333986,1752951039017,-460.0,0.00019307,2]
[373333987,1752951039027,-1067.44,0.00019307,2]
[373333988,1752951039037,-460.0,0.00019308,2]
[373333989,1752951039048,-460.0,0.00019308,2]
[373333990,1752951039059,-460.0,0.00019308,2]
[373333991,1752951039068,-460.0,0.00019308,2]
[373333992,1752951039078,-460.0,0.00019308,2]
[373333993,1752951039088,-460.0,0.00019308,2]
[373333994,1752951039098,-466.48323368,0.00019308,2]
[373333995,1752951039108,-460.0,0.00019308,2]
[373333996,1752951039118,-460.0,0.00019308,2]
[373333997,1752951039128,-460.0,0.00019308,2]
[373333998,1752951039138,-460.0,0.00019308,2]
[373333999,1752951039148,-460.0,0.00019308,2]
[373334000,1752951039158,-961.11,0.00019308,2]
[373334001,1752951039168,-460.0,0.00019308,2]
[373334002,1752951039178,-460.0,0.00019308,2]
[373334003,1752951039189,-888.87,0.00019308,2]
[373334004,1752951039200,-460.0,0.00019308,2]
[373334005,1752951039209,-460.0,0.00019308,2]
[373334006,1752951039220,-518.18505277,0.00019308,2]
[373334007,1752951039230,-757.53,0.00019308,2]
[373334008,1752951039240,-460.0,0.00019308,2]
[373334009,1752951039250,-460.0,0.00019308,2]
[373334010,1752951039260,-460.0,0.00019308,2]
[373334011,1752951039270,-460.0,0.00019308,2]